bitfinex-derivatives/quotes_BTCF0:USTF0_20250620
["timestamp","ask_amount","ask_price","bid_price","bid_amount"]
[1750449032546,2.1363621,103390.0,103380.0,0.038]
[1750449032743,2.1363621,103390.0,103380.0,0.0054]
[1750449032936,2.2963621,103390.0,103380.0,0.0054]
[1750449033141,2.2963621,103390.0,103380.0,0.005]
[1750449033449,2.2963621,103390.0,103380.0,0.0054]
[1750449034445,2.69552649,103390.0,103380.0,0.0054]
[1750449034851,2.69552649,103390.0,103380.0,0.005]
[1750449035554,2.69970056,103390.0,103380.0,0.0054]
[1750449035744,2.30053617,103390.0,103380.0,0.0054]
[1750449035940,1.68109617,103390.0,103380.0,0.0054]
[1750449036146,2.30029617,103390.0,103380.0,0.0054]
[1750449036346,2.30029617,103390.0,103380.0,0.0372]
[1750449036747,1.08759617,103390.0,103380.0,0.2306459]
[1750449036954,1.08759617,103390.0,103380.0,0.2625459]
[1750449036955,1.60371528,103390.0,103380.0,0.2625459]
[1750449037148,1.60371528,103390.0,103380.0,0.2949459]
[1750449038950,0.98471528,103390.0,103380.0,0.2949459]
[1750449039255,1.54612566,103390.0,103380.0,0.2949459]
[1750449042356,1.20482179,103390.0,103380.0,0.6557459]
[1750449042658,1.60398618,103390.0,103380.0,0.6557459]
[1750449044863,1.60398618,103390.0,103380.0,0.4299]
[1750449045062,1.63558618,103390.0,103380.0,0.4299]
[1750449045256,1.63558618,103390.0,103380.0,0.4295]
[1750449045459,1.63558618,103390.0,103380.0,0.4299]
[1750449045656,1.63558618,103390.0,103380.0,0.0691]
[1750449045962,1.63558618,103390.0,103380.0,0.2625459]
[1750449046666,1.74558618,103390.0,103380.0,0.0691]
[1750449046864,1.63558618,103390.0,103380.0,0.2625458]
[1750449048068,1.63558618,103390.0,103380.0,0.2306458]
[1750449048260,1.63558618,103390.0,103380.0,0.2306459]
[1750449048465,1.63558618,103390.0,103380.0,0.2616459]
[1750449048671,1.57772566,103390.0,103380.0,0.2616459]
[1750449049070,1.63562041,103390.0,103380.0,0.2616459]
[1750449049874,1.60402041,103390.0,103380.0,0.6224459]
[1750449050472,1.60402041,103390.0,103380.0,0.2616459]
[1750449052475,1.77402041,103390.0,103380.0,0.0682]
[1750449052675,2.13482041,103390.0,103380.0,0.0368]
[1750449052870,2.70870737,103390.0,103380.0,0.0054]
[1750449053278,2.70870737,103390.0,103380.0,0.005]
[1750449053476,2.85379284,103390.0,103380.0,0.0054]
[1750449053777,2.79589809,103390.0,103380.0,0.0054]
[1750449053974,0.1934458,103380.0,103370.0,0.03196735]
[1750449054174,2.02304066,103380.0,103370.0,0.00096735]
[1750449054375,0.1934646,103370.0,103360.0,0.031]
[1750449054572,2.23087819,103370.0,103360.0,0.0008]
[1750449054772,0.1934833,103360.0,103350.0,0.0633]
[1750449054969,1.02283325,103360.0,103350.0,0.0641]
[1750449055172,0.96484769,103360.0,103350.0,0.256802]
[1750449055578,1.02283325,103360.0,103350.0,0.257202]
[1750449055780,0.96484769,103360.0,103350.0,0.257202]
[1750449056173,1.02283325,103360.0,103350.0,0.0657]
[1750449056574,1.02283325,103360.0,103350.0,0.0677]
[1750449056771,1.02283325,103360.0,103350.0,0.261202]
[1750449056974,1.02283325,103360.0,103350.0,0.0677]
[1750449057581,1.96279764,103360.0,103350.0,0.0346]
[1750449057883,1.93591208,103360.0,103350.0,0.0346]
[1750449058076,1.53674769,103360.0,103350.0,0.0346]
[1750449058276,1.53674769,103360.0,103350.0,0.0342]
[1750449058473,1.53674769,103360.0,103350.0,0.0346]
[1750449058681,1.59568307,103360.0,103350.0,0.0326]
[1750449058885,1.59568307,103360.0,103350.0,0.0024]
[1750449058886,1.99484746,103360.0,103350.0,0.0024]
[1750449059884,1.59568307,103360.0,103350.0,0.0024]
[1750449060185,2.03920471,103360.0,103350.0,0.0024]
[1750449060378,2.09711979,103360.0,103350.0,0.0024]
[1750449060579,0.193502,103350.0,103340.0,0.00176763]
[1750449060779,2.72976586,103350.0,103340.0,0.00096763]
[1750449060980,2.87402817,103350.0,103340.0,0.00136763]
[1750449061184,2.72402817,103350.0,103340.0,0.00136763]
[1750449061384,2.95957539,103350.0,103340.0,0.00136763]
[1750449061686,3.06159054,103350.0,103340.0,0.00096763]
[1750449061983,3.06159054,103350.0,103340.0,0.00236763]
[1750449062485,3.06152467,103350.0,103340.0,0.00536763]
[1750449062687,2.29560467,103350.0,103340.0,0.00436763]
[1750449062879,1.16807797,103350.0,103340.0,0.19788843]
[1750449063080,1.16807797,103350.0,103340.0,0.65038843]
[1750449063081,1.68430282,103350.0,103340.0,0.65038843]
[1750449063488,1.49080082,103350.0,103340.0,0.65038843]
[1750449063782,1.62693361,103350.0,103340.0,0.65038843]
[1750449064581,1.00821361,103350.0,103340.0,0.65038843]
[1750449064782,1.03474722,103350.0,103340.0,0.65038843]
[1750449064987,0.07972129,103350.0,103340.0,1.04955282]
[1750449065176,0.07972129,103350.0,103340.0,1.70048081]
[1750449065678,0.00417407,103350.0,103340.0,1.95048081]
[1750449065878,0.49831111,103380.0,103360.0,0.1934832]
[1750449066082,1.2872016,103380.0,103370.0,0.0651]
[1750449066287,1.84887239,103380.0,103370.0,0.2585645]
[1750449066481,1.84887239,103380.0,103370.0,0.0651]
[1750449066684,1.88007239,103380.0,103370.0,0.2589645]
[1750449066878,1.88007239,103380.0,103370.0,0.0655]
[1750449067079,1.88007239,103380.0,103370.0,0.2589645]
[1750449067279,1.84887239,103380.0,103370.0,0.2589645]
[1750449067678,1.85187239,103380.0,103370.0,0.2589645]
[1750449068289,1.84887239,103380.0,103370.0,0.2589645]
[1750449068490,1.84987239,103380.0,103370.0,0.2589645]
[1750449068691,1.85087239,103380.0,103370.0,0.2589645]
[1750449069191,1.8603561,103380.0,103370.0,0.2589645]
[1750449069492,1.31977412,103380.0,103370.0,0.6197645]
[1750449069686,1.93909412,103380.0,103370.0,0.2589645]
[1750449069886,1.93909412,103380.0,103370.0,0.6197645]
[1750449070593,1.93909412,103380.0,103370.0,0.2589645]
[1750449070786,1.93909412,103380.0,103370.0,0.6197645]
[1750449071979,1.93909412,103380.0,103370.0,0.2589645]
[1750449072381,1.96939412,103380.0,103370.0,0.2589645]
[1750449073191,1.93909412,103380.0,103370.0,0.2589645]
[1750449074194,1.53992973,103380.0,103370.0,0.2589645]
[1750449074396,1.93909412,103380.0,103370.0,0.2589645]
[1750449074692,2.48012321,103380.0,103370.0,0.0337]
[1750449074887,2.51292321,103380.0,103370.0,0.0004]
[1750449075293,0.1934646,103370.0,103360.0,0.6642412]
[1750449075496,0.38,103370.0,103360.0,0.6650412]
[1750449075796,0.97262899,103370.0,103360.0,0.6650412]
[1750449075999,1.59054899,103370.0,103360.0,0.6650412]
[1750449076490,1.59254899,103370.0,103360.0,0.6650412]
[1750449076996,1.59454899,103370.0,103360.0,0.6650412]
[1750449078796,1.62504899,103370.0,103360.0,0.6650412]
[1750449079100,1.62484899,103370.0,103360.0,0.6166706]
[1750449079291,1.62902306,103370.0,103360.0,0.6166706]
[1750449079487,1.01130306,103370.0,103360.0,0.6166706]
[1750449079686,1.59800306,103370.0,103360.0,0.6166706]
[1750449080199,1.40441846,103370.0,103360.0,0.6166706]
[1750449080405,1.59788306,103370.0,103360.0,0.6166706]
[1750449086104,1.76788306,103370.0,103360.0,0.0309]
[1750449086401,0.193502,103350.0,103340.0,0.36176763]
[1750449086596,1.98670982,103350.0,103340.0,0.36176763]
[1750449086796,2.01950982,103350.0,103340.0,0.36176763]
[1750449087004,2.05080982,103350.0,103340.0,0.36216763]
[1750449087199,2.41160982,103350.0,103340.0,0.00136763]
[1750449087404,2.35373078,103350.0,103340.0,0.00136763]
[1750449087611,2.35373078,103350.0,103340.0,0.00236763]
[1750449087799,2.53373078,103350.0,103340.0,0.00436763]
[1750449088198,2.78975242,103350.0,103340.0,0.00396763]
[1750449088598,2.60975242,103350.0,103340.0,0.00396763]
[1750449088793,2.79975242,103350.0,103340.0,0.00396763]
[1750449088996,3.05115946,103350.0,103340.0,0.00336763]
[1750449089309,2.79975242,103350.0,103340.0,0.00296763]
[1750449089801,2.79975242,103350.0,103340.0,0.00096763]
[1750449090003,2.79975242,103350.0,103340.0,0.00136763]
[1750449090195,2.03535242,103350.0,103340.0,0.00136763]
[1750449090398,2.25306803,103350.0,103340.0,0.19488843]
[1750449090600,2.31093148,103350.0,103340.0,0.19488843]
[1750449090905,2.41102411,103350.0,103340.0,0.03326763]
[1750449091507,1.79418411,103350.0,103340.0,0.22678843]
[1750449091698,2.41162411,103350.0,103340.0,0.22678843]
[1750449091897,1.79418411,103350.0,103340.0,0.03326763]
[1750449092098,2.41134411,103350.0,103340.0,0.03326763]
[1750449093197,2.41134411,103350.0,103340.0,0.00136763]
[1750449095302,2.41134411,103350.0,103340.0,0.00096763]
[1750449095502,2.41134411,103350.0,103340.0,0.00136763]
[1750449097207,0.90278709,103350.0,103340.0,0.19488843]
[1750449097408,0.57136545,103350.0,103340.0,0.65008843]
[1750449097712,1.18952545,103350.0,103340.0,0.65008843]
[1750449098410,1.18952535,103350.0,103340.0,0.65008843]
[1750449098608,1.1319819,103350.0,103340.0,0.65008843]
[1750449099705,1.01279892,103350.0,103340.0,0.65008843]
[1750449099909,0.5135019,103350.0,103340.0,0.65008843]
[1750449102013,1.1315819,103350.0,103340.0,0.65008843]
[1750449102209,0.5135019,103350.0,103340.0,0.79676843]
[1750449103710,0.32,103350.0,103340.0,0.79676843]
[1750449104019,1.45547872,103360.0,103350.0,0.1935019]
[1750449104212,1.79547872,103360.0,103350.0,0.6170019]
[1750449104514,1.2960617,103360.0,103350.0,0.6170019]
[1750449105212,0.6806217,103360.0,103350.0,0.6170019]
[1750449105417,0.2438727,103360.0,103350.0,0.6170019]
[1750449105617,0.1954986,103360.0,103350.0,0.6170019]
[1750449106115,0.1974986,103360.0,103350.0,0.6170019]
[1750449106316,0.004,103360.0,103350.0,1.11629892]
[1750449106516,0.004,103360.0,103350.0,1.11829892]
[1750449106517,0.002,103360.0,103350.0,1.11829892]
[1750449106917,0.002,103360.0,103350.0,0.6190019]
[1750449107911,0.9560665,103370.0,103360.0,0.1934832]
[1750449108110,1.3360665,103370.0,103360.0,0.6504832]
[1750449108719,1.83536352,103370.0,103360.0,0.6504832]
[1750449111114,1.68772171,103370.0,103360.0,0.6504832]
[1750449112222,1.63935151,103370.0,103360.0,0.6504832]
[1750449112924,1.53928105,103370.0,103360.0,0.6504832]
[1750449117227,1.53928105,103370.0,103360.0,0.6175832]
[1750449117523,1.60438105,103370.0,103360.0,0.6175832]
[1750449118326,1.57228105,103370.0,103360.0,0.6175832]
[1750449118528,1.57428105,103370.0,103360.0,0.6175832]
[1750449118821,1.44452645,103370.0,103360.0,0.6175832]
[1750449119029,1.44652645,103370.0,103360.0,0.6175832]
[1750449120230,0.97669106,103370.0,103360.0,0.6175832]
[1750449120425,1.59241106,103370.0,103360.0,0.6175832]
[1750449120818,1.1931845,103370.0,103360.0,0.6175832]
[1750449121019,1.59241106,103370.0,103360.0,0.6175832]
[1750449122125,1.59041106,103370.0,103360.0,0.6175832]
[1750449123726,1.58841106,103370.0,103360.0,0.6175832]
[1750449125021,0.5734645,103370.0,103360.0,0.6175832]
[1750449125325,0.97269106,103370.0,103360.0,0.6175832]
[1750449126921,0.97269106,103370.0,103360.0,0.5850832]
[1750449127128,1.09200638,103370.0,103360.0,0.5850832]
[1750449127323,1.09200638,103370.0,103360.0,0.5546832]
[1750449127515,1.28200638,103370.0,103360.0,0.0004]
[1750449127715,0.1934832,103360.0,103350.0,0.3608]
[1750449127921,0.1935019,103350.0,103340.0,0.70040643]
[1750449128120,1.26637516,103350.0,103340.0,0.73340643]
[1750449128527,1.26637516,103350.0,103340.0,0.76430643]
[1750449129427,1.50647516,103350.0,103340.0,0.60404873]
[1750449129626,1.53977516,103350.0,103340.0,0.60404873]
[1750449130231,1.53977516,103350.0,103340.0,0.60364873]
[1750449130631,1.53977516,103350.0,103340.0,0.60404873]
[1750449133235,1.53977516,103350.0,103340.0,0.63434873]
[1750449134133,1.48180846,103350.0,103340.0,0.63434873]
[1750449134526,1.88103502,103350.0,103340.0,0.63434873]
[1750449135334,1.48180846,103350.0,103340.0,0.63434873]
[1750449136436,1.48180846,103350.0,103340.0,0.39246763]
[1750449136638,1.48180846,103350.0,103340.0,0.36216763]
[1750449137136,1.48180846,103350.0,103340.0,0.55568823]
[1750449137339,1.88103502,103350.0,103340.0,0.55568823]
[1750449137634,1.88103502,103350.0,103340.0,0.36216763]
[1750449137935,1.99026107,103350.0,103340.0,0.36216763]
[1750449138138,2.04822777,103350.0,103340.0,0.36216763]
[1750449138335,1.99026107,103350.0,103340.0,0.55568833]
[1750449139140,2.04822777,103350.0,103340.0,0.55568833]
[1750449139435,1.99026107,103350.0,103340.0,0.55568833]
[1750449140136,1.37458107,103350.0,103340.0,0.55568833]
[1750449140334,0.1935019,103350.0,103340.0,0.95491489]
[1750449140640,0.69906596,103360.0,103350.0,0.1935019]
[1750449140938,0.69906596,103360.0,103350.0,0.6186019]
[1750449140939,1.06906596,103360.0,103350.0,0.6186019]
[1750449142432,1.06906596,103360.0,103350.0,0.2578019]
[1750449142632,1.06906596,103360.0,103350.0,0.6186019]
[1750449142838,0.6698394,103360.0,103350.0,0.2578019]
[1750449143036,1.06906596,103360.0,103350.0,0.6186019]
[1750449143536,1.58246976,103360.0,103350.0,0.6186019]
[1750449146440,1.79246976,103360.0,103350.0,0.2578019]
[1750449146642,1.64043646,103360.0,103350.0,0.0317]
[1750449146843,1.70253646,103360.0,103350.0,0.0317]
[1750449147234,1.91253646,103360.0,103350.0,0.0317]
[1750449147436,1.70253646,103360.0,103350.0,0.0317]
[1750449147637,0.1935019,103350.0,103340.0,0.58838483]
[1750449147838,0.99272846,103350.0,103340.0,0.61998483]
[1750449148038,1.02422846,103350.0,103340.0,0.62038483]
[1750449149238,0.65422846,103350.0,103340.0,0.62038483]
[1750449149438,1.01422846,103350.0,103340.0,0.62038483]
[1750449149840,1.01422846,103350.0,103340.0,0.61998483]
[1750449150042,1.01422846,103350.0,103340.0,0.62038483]
[1750449150243,1.63286846,103350.0,103340.0,0.58808823]
[1750449150744,1.60136846,103350.0,103340.0,0.58808823]
[1750449150941,1.22136846,103350.0,103340.0,0.61978823]
[1750449151140,1.27933516,103350.0,103340.0,0.61978823]
[1750449151844,1.22136846,103350.0,103340.0,0.61978823]
[1750449152444,0.8221419,103350.0,103340.0,0.61978823]
[1750449152744,1.22136846,103350.0,103340.0,0.61978823]
[1750449153748,1.57136846,103350.0,103340.0,0.61978823]
[1750449154046,1.21136846,103350.0,103340.0,0.61978823]
[1750449154249,1.27933516,103350.0,103340.0,0.61978823]
[1750449156055,1.60933516,103350.0,103340.0,0.61978823]
[1750449156248,1.27933516,103350.0,103340.0,0.61978823]
[1750449158648,0.66069516,103350.0,103340.0,0.61978823]
[1750449158851,0.0679667,103350.0,103340.0,1.97797479]
[1750449159038,0.0579667,103360.0,103350.0,0.1935019]
[1750449159238,0.1479667,103360.0,103350.0,1.04862846]
[1750449159446,0.0579667,103360.0,103350.0,1.51662846]
[1750449159752,0.0579667,103360.0,103350.0,1.57662846]
[1750449160142,0.79577836,103370.0,103360.0,0.1934832]
[1750449160352,1.12578196,103370.0,103360.0,0.6177832]
[1750449163351,1.07741126,103370.0,103360.0,0.6177832]
[1750449165553,0.6781847,103370.0,103360.0,0.6177832]
[1750449165755,0.629814,103370.0,103360.0,0.6177832]
[1750449165949,1.02904056,103370.0,103360.0,0.6177832]
[1750449167760,0.629814,103370.0,103360.0,0.6177832]
[1750449168659,1.02904056,103370.0,103360.0,0.6177832]
[1750449169654,0.97107386,103370.0,103360.0,0.6177832]
[1750449171160,0.97107386,103370.0,103360.0,0.2569832]
[1750449171460,0.97107386,103370.0,103360.0,0.6177832]
[1750449172462,0.5718473,103370.0,103360.0,0.6177832]
[1750449172759,0.97107386,103370.0,103360.0,0.6177832]
[1750449173654,0.97107386,103370.0,103360.0,0.62742155]
[1750449173960,0.97107386,103370.0,103360.0,0.6177832]
[1750449180263,0.33,103370.0,103360.0,1.0342082]
[1750449180562,0.13490472,103380.0,103370.0,0.1934645]
[1750449180767,0.07693802,103380.0,103370.0,2.13609106]
[1750449180967,1.25511836,103400.0,103380.0,0.1934458]
[1750449181167,1.99852666,103400.0,103390.0,0.5856271]
[1750449181364,1.97195996,103400.0,103390.0,0.2249271]
[1750449181571,1.97195996,103400.0,103390.0,0.1934271]
[1750449181572,2.36445996,103400.0,103390.0,0.1934271]
[1750449181968,2.42237258,103400.0,103390.0,0.1934271]
[1750449182167,0.1934271,103390.0,103380.0,0.7622032]
[1750449182368,0.65143972,103390.0,103380.0,0.9101632]
[1750449182575,1.02056628,103390.0,103380.0,0.9101632]
[1750449182771,0.76922656,103390.0,103380.0,0.9105632]
[1750449183277,0.96265366,103390.0,103380.0,0.9105632]
[1750449183975,1.03944982,103390.0,103380.0,0.9105632]
[1750449184176,1.09736244,103390.0,103380.0,0.9105632]
[1750449186480,0.88824135,103390.0,103380.0,0.9105632]
[1750449186782,1.05736244,103390.0,103380.0,0.9105632]
[1750449189579,0.65813588,103390.0,103380.0,0.9105632]
[1750449189885,1.05736244,103390.0,103380.0,0.9105632]
[1750449190688,1.23736244,103390.0,103380.0,0.5542458]
[1750449190988,1.30196244,103390.0,103380.0,0.5546458]
[1750449191286,1.30196244,103390.0,103380.0,0.5542458]
[1750449191486,1.30196244,103390.0,103380.0,0.5546458]
[1750449192282,1.30396244,103390.0,103380.0,0.5546458]
[1750449192679,1.30396244,103390.0,103380.0,0.1938458]
[1750449192880,1.30396244,103390.0,103380.0,0.5546458]
[1750449194084,1.30596244,103390.0,103380.0,0.5546458]
[1750449197783,1.30596244,103390.0,103380.0,0.0004]
[1750449197983,2.25492084,103390.0,103380.0,0.0004]
[1750449198184,0.1934645,103370.0,103360.0,0.5542768]
[1750449198380,1.59821437,103370.0,103360.0,0.5550768]
[1750449198580,1.62981437,103370.0,103360.0,0.5550768]
[1750449198782,1.66161437,103370.0,103360.0,0.5550768]
[1750449198983,1.66161437,103370.0,103360.0,0.5877768]
[1750449199285,1.66161437,103370.0,103360.0,0.5897768]
[1750449200285,1.66161437,103370.0,103360.0,0.5907768]
[1750449201085,1.26238781,103370.0,103360.0,0.5907768]
[1750449201293,1.62981437,103370.0,103360.0,0.5877768]
[1750449201494,1.59821437,103370.0,103360.0,0.6181768]
[1750449201889,0.98061437,103370.0,103360.0,0.6181768]
[1750449202086,0.94062781,103370.0,103360.0,0.6503768]
[1750449202584,1.33985437,103370.0,103360.0,0.6503768]
[1750449203292,0.87490781,103370.0,103360.0,1.04960336]
[1750449203492,0.87490781,103370.0,103360.0,0.6503768]
[1750449203690,0.87490781,103370.0,103360.0,0.6680915]
[1750449206697,1.27413437,103370.0,103360.0,0.6680915]
[1750449207500,0.65461437,103370.0,103360.0,0.6680915]
[1750449207699,0.25538781,103370.0,103360.0,0.6680915]
[1750449208994,0.25338781,103370.0,103360.0,0.6680915]
[1750449209600,0.65061437,103370.0,103360.0,0.6680915]
[1750449209900,0.65061437,103370.0,103360.0,0.6672915]
[1750449210101,0.65061437,103370.0,103360.0,0.6676915]
[1750449210308,0.65061437,103370.0,103360.0,0.6354915]
[1750449210501,0.68371437,103370.0,103360.0,0.6354915]
[1750449210701,0.68371437,103370.0,103360.0,0.6350915]
[1750449211005,0.68371437,103370.0,103360.0,0.6354915]
[1750449211706,0.28448781,103370.0,103360.0,0.6354915]
[1750449212001,0.65061437,103370.0,103360.0,0.6354915]
[1750449214209,0.59269106,103370.0,103360.0,0.6354915]
[1750449217202,0.62449106,103370.0,103360.0,0.6354915]
[1750449217611,0.97449106,103370.0,103360.0,0.6354915]
[1750449218113,0.62449106,103370.0,103360.0,0.6354915]
[1750449218913,0.59269106,103370.0,103360.0,0.6354915]
[1750449219415,0.66061437,103370.0,103360.0,0.6354915]
[1750449220218,0.65061437,103370.0,103360.0,0.6354915]
[1750449220513,0.66061437,103370.0,103360.0,0.6354915]
[1750449222314,0.98061437,103370.0,103360.0,0.6354915]
[1750449222515,1.02045881,103370.0,103360.0,0.6354915]
[1750449222704,0.66061437,103370.0,103360.0,0.6354915]
[1750449224117,0.26138781,103370.0,103360.0,0.6354915]
[1750449224319,0.66061437,103370.0,103360.0,0.6354915]
[1750449227014,0.75732887,103380.0,103370.0,0.7974445]
[1750449228121,1.10732887,103380.0,103370.0,0.7974445]
[1750449228421,0.74732887,103380.0,103370.0,0.7661445]
[1750449228720,1.07732887,103380.0,103370.0,0.5864645]
[1750449228912,1.10932887,103380.0,103370.0,0.5864645]
[1750449229213,1.14042887,103380.0,103370.0,0.5864645]
[1750449229419,1.14042887,103380.0,103370.0,0.5868645]
[1750449229620,1.08250556,103380.0,103370.0,0.2260645]
[1750449230012,1.08250556,103380.0,103370.0,0.1938645]
[1750449230210,0.75250556,103380.0,103370.0,0.1934645]
[1750449230410,1.13450556,103380.0,103370.0,0.1938645]
[1750449231517,1.13650556,103380.0,103370.0,0.1938645]
[1750449231719,0.86650556,103380.0,103370.0,0.1938645]
[1750449231919,0.86650556,103380.0,103370.0,0.2245645]
[1750449233117,0.80340556,103380.0,103370.0,0.2245645]
[1750449233328,0.80340556,103380.0,103370.0,0.2577645]
[1750449233821,0.80340556,103380.0,103370.0,0.2893645]
[1750449234322,0.80140556,103380.0,103370.0,0.2893645]
[1750449234524,0.79940556,103380.0,103370.0,0.2893645]
[1750449235333,1.63580556,103380.0,103370.0,0.2577645]
[1750449235522,1.66890556,103380.0,103370.0,0.2577645]
[1750449236421,1.67090556,103380.0,103370.0,0.2577645]
[1750449236825,1.67090556,103380.0,103370.0,0.2245645]
[1750449237028,1.70350556,103380.0,103370.0,0.2245645]
[1750449238327,1.70550556,103380.0,103370.0,0.2245645]
[1750449239931,1.63980556,103380.0,103370.0,0.5853645]
[1750449240223,1.63980556,103380.0,103370.0,0.6158645]
[1750449241330,1.67160556,103380.0,103370.0,0.6158645]
[1750449242325,1.67160556,103380.0,103370.0,0.2550645]
[1750449243030,1.05520556,103380.0,103370.0,0.2550645]
[1750449243433,0.39203458,103380.0,103370.0,1.01509106]
[1750449243634,0.09203458,103380.0,103370.0,1.34509106]
[1750449243835,0.004,103380.0,103370.0,1.34926513]
[1750449244132,0.004,103380.0,103370.0,1.37810551]
[1750449245040,0.25144288,103400.0,103390.0,0.193427]
[1750449245333,0.5534083,103400.0,103390.0,1.12698018]
[1750449245530,0.5534083,103400.0,103390.0,0.7494462]
[1750449246033,0.1934083,103400.0,103390.0,0.7494462]
[1750449246235,0.3354083,103400.0,103390.0,0.7494462]
[1750449246534,0.3374083,103400.0,103390.0,0.7494462]
[1750449248038,0.3374083,103400.0,103390.0,0.7803462]
[1750449248230,0.3374083,103400.0,103390.0,0.7901698]
[1750449248529,0.3374083,103400.0,103390.0,0.7803462]
[1750449249336,0.41454488,103400.0,103390.0,0.7813462]
[1750449249540,0.27454488,103400.0,103390.0,0.7813462]
[1750449249834,0.67377144,103400.0,103390.0,0.763807]
[1750449250030,0.70417144,103400.0,103390.0,0.763807]
[1750449251434,0.70217144,103400.0,103390.0,0.763807]
[1750449251632,0.70217144,103400.0,103390.0,0.764807]
[1750449254134,0.76020602,103400.0,103390.0,0.764807]
[1750449257741,1.08020602,103400.0,103390.0,0.764807]
[1750449258044,1.08020602,103400.0,103390.0,0.733907]
[1750449258344,1.11230602,103400.0,103390.0,0.733907]
[1750449258545,1.11230602,103400.0,103390.0,0.734307]
[1750449258944,0.79230602,103400.0,103390.0,0.766807]
[1750449259152,0.81230602,103400.0,103390.0,0.766807]
[1750449259449,0.79230602,103400.0,103390.0,0.766807]
[1750449260049,1.13230602,103400.0,103390.0,0.766807]
[1750449260240,0.79230602,103400.0,103390.0,0.766807]
[1750449263145,0.76020602,103400.0,103390.0,0.766807]
[1750449263949,0.36097946,103400.0,103390.0,0.766807]
[1750449264245,0.30294488,103400.0,103390.0,0.766807]
[1750449265539,0.30294488,103400.0,103390.0,0.620327]
[1750449265739,0.30294488,103400.0,103390.0,0.766767]
[1750449265948,0.27254488,103400.0,103390.0,0.766767]
[1750449267948,0.27254488,103400.0,103390.0,0.3632]
[1750449267949,1.01177144,103400.0,103390.0,0.3632]
[1750449268154,1.13020602,103400.0,103390.0,0.002]
[1750449268650,1.13020602,103400.0,103390.0,0.0024]
[1750449269044,1.07217144,103400.0,103390.0,0.195827]
[1750449269355,1.07217144,103400.0,103390.0,0.0024]
[1750449269547,1.07317144,103400.0,103390.0,0.0014]
[1750449269952,1.43397144,103400.0,103390.0,0.194827]
[1750449270340,1.43397144,103400.0,103390.0,0.193827]
[1750449270545,1.43597144,103400.0,103390.0,0.193827]
[1750449270747,1.03674488,103400.0,103390.0,0.193827]
[1750449271054,1.43597144,103400.0,103390.0,0.0004]
[1750449271558,1.51320252,103400.0,103390.0,0.0004]
[1750449272252,1.11397596,103400.0,103390.0,0.193827]
[1750449272454,1.51320252,103400.0,103390.0,0.193827]
[1750449272958,1.07517144,103400.0,103390.0,0.193827]
[1750449273366,1.07517144,103400.0,103390.0,0.0004]
[1750449273663,1.18026348,103400.0,103390.0,0.0004]
[1750449274152,1.18026348,103400.0,103390.0,0.193827]
[1750449274360,1.2382515,103400.0,103390.0,0.0004]
[1750449274558,1.5990515,103400.0,103390.0,0.0004]
[1750449274758,1.54106348,103400.0,103390.0,0.0004]
[1750449274960,1.18026348,103400.0,103390.0,0.1938269]
[1750449275758,1.18026348,103400.0,103390.0,0.0004]
[1750449276159,1.18026348,103400.0,103390.0,0.1938271]
[1750449276460,1.18026348,103400.0,103390.0,0.0004]
[1750449276762,1.18026348,103400.0,103390.0,0.1938271]
[1750449277063,0.38352037,103400.0,103390.0,0.5546271]
[1750449277265,0.38352037,103400.0,103390.0,1.40635366]
[1750449277266,0.08213658,103400.0,103390.0,1.40635366]
[1750449277464,0.003,103400.0,103390.0,1.39395896]
[1750449278265,0.003,103400.0,103390.0,1.43395896]
[1750449278657,0.002,103400.0,103390.0,1.63039096]
[1750449279162,0.002,103400.0,103390.0,1.43695896]
[1750449279557,0.47289766,103410.0,103400.0,0.1934083]
[1750449279759,0.59289766,103410.0,103400.0,1.16461486]
[1750449280164,0.25444896,103410.0,103400.0,1.16461486]
[1750449280360,0.05797539,103420.0,103410.0,0.1933896]
[1750449280565,0.39639749,103420.0,103410.0,0.6479896]
[1750449280756,0.73764866,103420.0,103410.0,0.6177896]
[1750449280957,0.79562405,103420.0,103410.0,0.6177896]
[1750449281157,0.85832405,103420.0,103410.0,0.6177896]
[1750449281358,0.45909749,103420.0,103410.0,0.6181896]
[1750449281560,0.42583504,103420.0,103410.0,1.01741616]
[1750449281964,0.13575864,103420.0,103410.0,1.01741616]
[1750449282160,0.27115415,103420.0,103410.0,1.01741616]
[1750449282869,0.1943709,103420.0,103410.0,1.01741616]
[1750449283168,0.003,103420.0,103410.0,1.01741616]
[1750449283767,0.1963709,103420.0,103410.0,1.01741616]
[1750449284368,0.06097539,103420.0,103410.0,1.01741616]
[1750449285366,0.003,103420.0,103410.0,1.01741616]
[1750449285565,0.1963709,103420.0,103410.0,1.01741616]
[1750449286061,0.003,103420.0,103410.0,1.35741616]
[1750449286566,0.1963709,103420.0,103410.0,1.01741616]
[1750449288765,0.1963709,103420.0,103410.0,0.6181896]
[1750449288968,0.59559746,103420.0,103410.0,0.6181896]
[1750449289262,1.04687285,103420.0,103410.0,0.7310696]
[1750449289466,0.74877285,103420.0,103410.0,0.7314696]
[1750449289659,0.75877285,103420.0,103410.0,0.7314696]
[1750449290264,0.13427539,103420.0,103410.0,0.7310696]
[1750449290568,0.003,103420.0,103410.0,1.89252272]
[1750449291163,0.003,103420.0,103410.0,1.49329616]
[1750449291666,0.003,103420.0,103410.0,1.16329616]
[1750449292066,0.003,103420.0,103410.0,1.48329616]
[1750449293368,0.003,103420.0,103410.0,1.16329616]
[1750449297070,0.003,103420.0,103410.0,1.52329616]
[1750449300272,0.001,103430.0,103420.0,0.3607999]
[1750449300460,0.05897539,103460.0,103450.0,0.1933148]
[1750449300658,0.001,103460.0,103450.0,2.0375948]
[1750449300861,0.001,103460.0,103450.0,2.53272136]
[1750449301071,0.001,103460.0,103450.0,2.17272136]
[1750449301774,0.003,103460.0,103450.0,2.17272136]
[1750449302171,0.003,103460.0,103450.0,2.54272136]
[1750449302371,0.11957539,103480.0,103470.0,0.1932775]
[1750449302578,1.03408536,103480.0,103470.0,0.5540775]
[1750449303072,1.14084693,103480.0,103470.0,0.5540775]
[1750449303475,0.51806157,103480.0,103470.0,0.95330406]
[1750449303674,0.51806157,103480.0,103470.0,1.01690406]
[1750449303977,0.1715,103480.0,103470.0,1.01690406]
[1750449304374,0.1725,103480.0,103470.0,1.01690406]
[1750449304571,0.3657588,103480.0,103470.0,1.01690406]
[1750449304772,0.17667407,103480.0,103470.0,1.01690406]
[1750449305082,0.17767407,103480.0,103470.0,1.01690406]
[1750449305378,0.37093287,103480.0,103470.0,1.01690406]
[1750449305577,0.17767407,103480.0,103470.0,1.01690406]
[1750449305877,0.14617407,103480.0,103470.0,1.01690406]
[1750449306075,0.14617407,103480.0,103470.0,1.41770406]
[1750449306272,0.14617407,103480.0,103470.0,1.67246406]
[1750449306467,0.33943287,103480.0,103470.0,1.67246406]
[1750449306772,0.33943287,103480.0,103470.0,1.2732375]
[1750449306968,0.14617407,103480.0,103470.0,1.2732375]
[1750449307373,0.00617407,103480.0,103470.0,1.67246406]